[Event "FIDE WCCC U10 2018"]
[Site "Santiago de Compostela"]
[Date "2018.11.05"]
[Round "2"]
[White "Colev, Ivor"]
[Black "Materia, Marco"]
[Result "0-1"]
[ECO "C95"]
[WhiteElo "1655"]
[BlackElo "2035"]
[Annotator "NA RC"]
[PlyCount "153"]
[EventDate "2018.11.04"]
[EventType "swiss"]
[EventCountry "ESP"]
[SourceTitle "playchess.com"]
[Source "ChessBase"]
[SourceQuality "1"]
[TimeControl "40/5400+30:1800+30"]

{[%evp 8,150,16,32767,32767,32767,32767,32767,37,36,32767,32767,32767,32767,32767,32767,32767,32767,32767,32767,32767,32767,32767,32767,32767,32767,32767,13,23,21,21,12,17,-21,15,-13,-6,-11,-8,-12,0,-18,-18,-91,-91,-89,-97,-134,-152,-152,-155,-161,-23,-26,-30,32767,32767,32767,32767,-31,32767,32767,32767,32767,32767,-26,-20,-28,-29,-29,-21,-28,-36,-37,-40,-28,-25,-26,-34,-31,-22,-53,-30,-34,-21,-42,-32,-46,-25,-48,-50,-168,32767,32767,-14,32767,32767,32767,32767,32767,0,-57,-59,-138,-124,32767,-127,-124,-122,-144,-175,-175,-190,-502,-605,-640,-698,-573,-498,-524,-835,-762,-639,-595,-739,-598,-1186,-783,-928,-1182,-1900,-2136,-2364,-1665,-2089,-1580,-2525,-5405,-5702,-5439,32767,32767,-29974,32767,-5734]} 1. e4 {[%emt 0:00:00] Marin,M} e5 {[%emt 0:00:00]} 2. Nf3 {[%emt 0:00:00]} Nc6 {[%emt 0:00:00]} 3. Bb5 {[%emt 0:00:00]} a6 {[%emt 0:00:00]} 4. Ba4 {[%emt 0:00:00]} Nf6 {[%emt 0:00:10]} 5. O-O {[%emt 0:00:04]} Be7 {[%emt 0:00:07]} 6. Re1 {[%emt 0:00:06]} b5 {[%emt 0:00:07]} 7. Bb3 {[%emt 0:00:07]} d6 {[%emt 0:00:08]} 8. c3 {[%emt 0:00:07]} O-O {[%emt 0:00:09]} 9. h3 {[%emt 0:00:04]} Nb8 {[%emt 0:00:05]} 10. d4 {[%emt 0:00:08]} Nbd7 {[%emt 0:00:05]} 11. Nbd2 {[%emt 0:00:56]} Bb7 {[%emt 0:00:06]} 12. Bc2 {[%emt 0:00:38]} Re8 {[%emt 0:00:08]} 13. Nf1 {[%emt 0:00:41]} Bf8 {[%emt 0:00:05]} 14. Ng3 {[%emt 0:00:27]} g6 {[%emt 0:00:06]} 15. Bg5 {[%emt 0:04:54]} h6 {[%emt 0:00:07]} 16. Bd2 {[%emt 0:00:39]} Bg7 {[%emt 0:00:16]} 17. Qc1 {[%emt 0:01:19]} Kh7 {[%emt 0:00:06] LiveBook: 23 Games C95: Closed Ruy Lopez: Breyer Variation with 10 d4} 18. a4 {[%emt 0:17:08]} c5 {[%emt 0:08:53] [#]} 19. axb5 $146 {[%emt 0:06:58]} ({Predecessor:} 19. d5 c4 20. b4 cxb3 21. Bxb3 Nc5 22. Qa3 Nfd7 23. Be3 Qc7 24. Reb1 Reb8 25. Nd2 {1-0 (52) Palac,M (2577)-Swiercz,D (2656) Gjakova 2016 CBM 173 [Marin,M]}) 19... axb5 {[%emt 0:00:22]} 20. Bd3 {[%emt 0:01:35]} Qb6 {[%emt 0:08:03]} 21. dxe5 {[%emt 0:01:37]} Nxe5 {[%emt 0:01:31]} 22. Nxe5 {[%emt 0:00:16]} dxe5 {[%emt 0:00:43]} 23. Be3 {[%emt 0:00:35]} Qc6 {[%emt 0:03:40]} 24. Qd2 {[%emt 0:08:32]} Nd7 {[%emt 0:05:35]} 25. Qe2 {[%emt 0:05:10]} (25. Bf1 $11) 25... c4 {[%emt 0:01:14]} 26. Bc2 {[%emt 0:00:07] [#]} f5 $1 {[%emt 0:02:54]} 27. f4 {[%emt 0:10:41]} Rxa1 {[%emt 0:00:41]} 28. Rxa1 {[%emt 0:00:07]} exf4 {[%emt 0:00:10]} 29. Bxf4 {[%emt 0:00:05]} fxe4 {[%emt 0:00:15]} (29... Nc5 $17 30. Be3 fxe4) 30. Bxe4 {[%emt 0:25:53]} Rxe4 {[%emt 0:09:06]} 31. Nxe4 {[%emt 0:00:13]} Qxe4 {[%emt 0:00:06]} 32. Qxe4 {[%emt 0:00:08]} Bxe4 {[%emt 0:00:05]} 33. Ra7 {[%emt 0:00:11]} Nf6 {[%emt 0:00:22]} 34. Be5 {[%emt 0:05:22]} Kg8 {[%emt 0:00:18]} 35. Re7 {[%emt 0:00:10]} Bd5 {[%emt 0:00:27]} 36. Rc7 {[%emt 0:03:48]} Bf7 {[%emt 0:04:11]} 37. Rc8+ Ne8 {[%emt 0:00:55]} 38. Bxg7 {[%emt 0:03:30]} Kxg7 {[%emt 0:00:07]} 39. Rb8 {[%emt 0:00:09]} Nd6 {[%emt 0:00:28]} 40. Rb6 {[%emt 0:00:00]} Ne4 {[%emt 0:00:00]} 41. Rxb5 {[%emt 0:00:17]} Kf6 {[%emt 0:00:58]} 42. Kf1 {[%emt 0:00:49]} Nd6 {[%emt 0:00:20]} 43. Rb6 {[%emt 0:00:28]} Ke5 {[%emt 0:00:07]} 44. Ke2 {[%emt 0:00:24]} Nf5 {[%emt 0:01:47]} 45. Kf2 {[%emt 0:04:05]} h5 {[%emt 0:01:51]} 46. g3 {[%emt 0:04:58]} g5 {[%emt 0:00:44]} 47. Rb5+ {[%emt 0:00:25]} Bd5 {[%emt 0:00:49]} 48. Ra5 {[%emt 0:06:12]} Nd6 {[%emt 0:00:50]} 49. Ke3 {[%emt 0:01:20]} Nf5+ {[%emt 0:01:50]} 50. Kf2 {[%emt 0:00:09]} Ke4 {[%emt 0:00:35]} 51. Ra1 {[%emt 0:00:13]} Nd6 {[%emt 0:01:29]} 52. Ra6 {[%emt 0:11:02]} Nf7 {[%emt 0:01:41]} 53. Ra1 {[%emt 0:00:13]} Nd6 {[%emt 0:00:59]} 54. Ra6 {[%emt 0:00:07]} Ke5 {[%emt 0:00:20]} 55. Ra5 {[%emt 0:00:18]} ({White should try} 55. Kg1 $15) 55... Ne4+ {[%emt 0:00:09]} 56. Ke1 {[%emt 0:00:55]} Kd6 {[%emt 0:01:46]} ({Don't take} 56... Nxg3 57. b3 $17) 57. Ra6+ {[%emt 0:01:07]} Ke7 {[%emt 0:01:22]} 58. Ra7+ {[%emt 0:01:49]} Kf6 {[%emt 0:00:08]} 59. Ra6+ {[%emt 0:01:24]} Be6 {[%emt 0:00:07]} 60. h4 $2 {[%emt 0:03:00]} (60. g4 {nothing else works.} hxg4 61. hxg4) 60... g4 {[%emt 0:00:11]} 61. Ra5 {[%emt 0:01:21]} Nxg3 {[%emt 0:00:19]} 62. Kf2 {[%emt 0:00:37] [#]} Nf5 $1 {[%emt 0:00:09]} 63. Rc5 {[%emt 0:00:27]} Bf7 {[%emt 0:00:19]} 64. Rc6+ {[%emt 0:00:31]} Kg7 {[%emt 0:00:17]} 65. Rc5 {[%emt 0:01:24]} Nxh4 {[%emt 0:01:28]} 66. Kg3 {[%emt 0:00:11]} Nf3 {[%emt 0:00:14]} 67. Kf4 {[%emt 0:01:18]} Kf6 {[%emt 0:00:11]} 68. Rc6+ {[%emt 0:00:32]} Be6 {[%emt 0:00:06]} 69. Rc5 {[%emt 0:00:08]} h4 {[%emt 0:00:21]} 70. Rh5 {[%emt 0:01:03]} Kg6 {[%emt 0:00:20]} 71. Ra5 {[%emt 0:00:13]} Ne1 {[%emt 0:00:52]} 72. Rg5+ {[%emt 0:00:35]} Kh6 {[%emt 0:00:28]} 73. Ra5 {[%emt 0:00:23]} Nd3+ {[%emt 0:00:05]} 74. Ke3 {[%emt 0:00:09]} h3 {[%emt 0:00:27]} 75. Ra1 {[%emt 0:02:16]} Kg5 $19 {[%emt 0:00:13]} 76. Rh1 {[%emt 0:00:30]} Kh4 {[%emt 0:00:08]} 77. Kd4 0-1

[Event "FIDE WCCC U10 2018"]
[Site "Santiago de Compostela"]
[Date "2018.11.05"]
[Round "2"]
[White "seder mohamad"]
[Black "Xue, Haowen"]
[Result "1/2-1/2"]
[ECO "B24"]
[WhiteElo "1653"]
[BlackElo "2025"]
[Annotator "NA RC"]
[PlyCount "36"]
[EventDate "2018.11.04"]
[EventType "swiss"]
[EventCountry "ESP"]
[SourceTitle "playchess.com"]
[Source "ChessBase"]
[SourceQuality "1"]
[TimeControl "40/5400+30:1800+30"]

{[%evp 9,35,0,0,32767,32767,32767,32767,32767,32767,-10,-8,32767,0,-1,32767,32767,56,39,36,49,93,109,127,124,125,116,150,66]} 1. e4 {[%emt 0:00:00]} c5 {[%emt 0:00:00]} 2. Nc3 {[%emt 0:00:00]} Nc6 {[%emt 0:00:15]} 3. g3 {[%emt 0:00:00]} g6 {[%emt 0:00:12]} 4. Bg2 {[%emt 0:00:05]} Bg7 {[%emt 0:00:08]} 5. d3 {[%emt 0:00:07]} e6 {[%emt 0:01:12]} 6. f4 {[%emt 0:00:07]} Nge7 {[%emt 0:01:36]} 7. Nf3 {[%emt 0:00:11]} O-O {[%emt 0:01:15]} 8. O-O {[%emt 0:00:08]} d6 {[%emt 0:01:01]} 9. Be3 {[%emt 0:00:10]} Nd4 {[%emt 0:00:24]} 10. Bf2 {[%emt 0:00:08]} Nec6 {[%emt 0:02:30]} 11. Nxd4 {[%emt 0:01:21] LiveBook: 40 Games} Nxd4 {[%emt 0:00:22]} 12. e5 {[%emt 0:00:06]} Bd7 {[%emt 0:17:08] B25: Sizilianisch (Geschlossenes System)} (12... dxe5 $11 13. fxe5 Rb8 (13... Bxe5 14. Ne4 Bg7 15. c3 Nf5 16. Nxc5 Qc7 17. d4 Rb8 18. g4 Nd6 19. Nd3 b6 20. Bg3 Rd8 21. Ne5 Bb7 22. Qe2 Bxg2 23. Qxg2 Bxe5 24. Bxe5 {1-0 (32) Muzychuk,A (2560)-Lagno,K (2543) Khanty-Mansiysk 2014})) 13. Ne4 {[%emt 0:04:52]} ({Much weaker is} 13. Bxb7 Rb8 $17) 13... dxe5 {[%emt 0:03:49]} 14. c3 $146 ({Much worse is} 14. Nxc5 Bc6 $15) ({Vorgänger:} 14. fxe5 Bc6 15. c3 Nf5 16. Bxc5 Re8 17. Nd6 Bxg2 18. Kxg2 b6 19. Nxf5 exf5 20. Bd6 Bxe5 21. Bxe5 Rxe5 22. Qf3 Qe8 23. Rae1 Rxe1 24. Rxe1 Qxe1 25. Qxa8+ Kg7 26. Qd5 {½-½ (27) Iseringhausen,M (1942)-Zeldin,L (2066) Kranenburg 2008}) 14... Nc6 {[%emt 0:05:02]} (14... Nf5 $14) 15. Bxc5 {[%emt 0:00:25]} f5 {[%emt 0:03:33]} 16. Bxf8 {[%emt 0:00:25]} Bxf8 {[%emt 0:01:09]} 17. Nd2 {[%emt 0:03:40]} Qc7 {[%emt 0:03:29]} 18. Qb3 $14 (18. Nc4 $16) 18... Bh6 {[%emt 0:02:40]} 1/2-1/2

[Event "FIDE WCCC U10 2018"]
[Site "Santiago de Compostela"]
[Date "2018.11.05"]
[Round "2"]
[White "Horcajuelo Rocamora, Martin"]
[Black "Mardov, Dimitar"]
[Result "0-1"]
[ECO "B90"]
[WhiteElo "1647"]
[BlackElo "1985"]
[Annotator "NA RC"]
[PlyCount "120"]
[EventDate "2018.11.04"]
[EventType "swiss"]
[EventCountry "ESP"]
[SourceTitle "playchess.com"]
[Source "ChessBase"]
[SourceQuality "1"]
[TimeControl "40/5400+30:1800+30"]

{[%evp 8,120,31,25,26,20,32767,32767,32767,32767,32767,32767,32767,16,53,21,30,-16,0,-6,7,0,0,-35,-51,-85,-40,-64,-19,-33,0,-2,9,-10,46,-19,-22,-19,-8,-33,-22,-260,-264,-429,-268,-289,-298,-287,-127,-451,-495,-493,-480,-494,-456,-465,-473,-440,-493,-475,-469,-423,32767,-421,-419,-420,-389,-395,-437,-388,-357,-550,-556,-766,-511,-468,-466,-487,-441,32767,-480,-516,-494,-537,-516,-530,-550,-562,-489,32767,32767,32767,32767,-697,-736,-587,-849,-592,32767,32767,32767,32767,32767,32767,32767,32767,32767,32767,32767,-29979,-29982,-29982,-29980,-29990,-12848]} 1. e4 {[%emt 0:00:00]} c5 {[%emt 0:00:00]} 2. Nf3 {[%emt 0:00:00]} d6 {[%emt 0:00:00]} 3. d4 {[%emt 0:00:00]} cxd4 {[%emt 0:00:00]} 4. Nxd4 {[%emt 0:00:04]} Nf6 {[%emt 0:00:00]} 5. Nc3 {[%emt 0:00:07]} a6 {[%emt 0:00:08]} 6. Be3 {[%emt 0:00:32]} e6 {[%emt 0:00:38]} 7. g3 {[%emt 0:00:52]} Be7 {[%emt 0:00:44]} 8. Bg2 {[%emt 0:00:07]} O-O {[%emt 0:00:08]} 9. O-O {[%emt 0:00:05]} Qc7 {[%emt 0:00:13]} 10. f4 {[%emt 0:00:31] B80: Sizilianisch (Scheveninger System)} (10. g4 Re8 11. g5 Nfd7 12. f4 Bf8 13. h4 Nc6 14. h5 Nxd4 15. Qxd4 b5 16. Rad1 Bb7 17. Qd2 Rad8 18. Qf2 {0-1 (36) Muzychuk,M (2554)-Bruzon Batista,L (2666) Gibraltar 2016}) 10... Nbd7 {[%emt 0:02:28] LiveBook: 3 Games [#]} 11. Qe2 {[%emt 0:04:46]} (11. g4 $1 $16) 11... Nb6 {[%emt 0:08:42]} 12. Qd3 $146 {[%emt 0:07:37]} ({Vorgänger:} 12. Kh1 Re8 13. g4 Bf8 14. g5 Nfd7 15. Rad1 Nc4 16. Bc1 b5 17. Qf2 b4 {1-0 (34) Popovic,P (2545)-Ilincic,Z (2565) Cacak 1995}) 12... Nc4 {[%emt 0:05:20]} 13. Bc1 {[%emt 0:00:29]} Bd7 {[%emt 0:04:04]} 14. b3 {[%emt 0:03:58]} Na5 {[%emt 0:01:31]} 15. Nce2 {[%emt 0:04:13]} Rac8 {[%emt 0:03:53]} 16. c4 {[%emt 0:01:41]} b5 {[%emt 0:03:47]} 17. cxb5 {[%emt 0:02:13]} axb5 {[%emt 0:00:36]} 18. Be3 {[%emt 0:02:01]} Ng4 {[%emt 0:02:31]} 19. Rac1 {[%emt 0:03:35]} Qb8 {[%emt 0:04:30]} 20. Bd2 {[%emt 0:03:18]} Nb7 {[%emt 0:02:16]} 21. h3 {[%emt 0:04:39]} ({White should play} 21. b4 $16) 21... Nc5 {[%emt 0:01:47]} 22. Qb1 {[%emt 0:06:53]} Nf6 {[%emt 0:01:20]} 23. b4 {[%emt 0:07:53]} Na4 $1 {[%emt 0:01:19]} 24. Nc3 $2 {[%emt 0:06:06]} (24. g4 $15) 24... Qa7 {[%emt 0:03:26]} 25. Be3 $2 {[%emt 0:06:55]} (25. Nce2 e5 26. Be3 exd4 27. Bxd4) 25... Nxc3 {[%emt 0:04:45]} 26. Qb3 {[%emt 0:00:20]} Qc7 {[%emt 0:02:04]} ({Auf keinen Fall} 26... Nfxe4 27. Bxe4 Bf6 28. Rxc3 $19) ({Nicht} 26... Ncxe4 {[#]} 27. Nf5 $1 $11 {[%mdl 512]}) ({Weniger gut wäre} 26... Qxa2 27. Rxc3 Qxb3 28. Rxb3 $17) (26... Nxa2 27. Rxc8 Bxc8 28. Ra1 $15) 27. Bd2 {[%emt 0:00:54]} e5 {[%emt 0:06:30]} ({Finger weg von} 27... Nfxe4 28. Bxe4 Nxe4 29. Rxc7 $17) (27... Qb6 $19 {und Schwarz behält klar die Oberhand.} 28. Bxc3 e5) 28. fxe5 $2 {[%emt 0:02:10]} (28. Nf5 $17 Bxf5 29. Rxc3 Qa7+ 30. Be3 Rxc3 31. Qxc3 Nxe4 32. Bxe4) 28... dxe5 {[%emt 0:00:45]} 29. Nf5 {[%emt 0:02:20]} Bxf5 {[%emt 0:06:31]} 30. Rxc3 {[%emt 0:01:31]} Qd6 {[%emt 0:01:56]} 31. Rd3 {[%emt 0:02:16]} Be6 {[%emt 0:01:16]} 32. Rxd6 {[%emt 0:03:14]} Bxb3 {[%emt 0:00:12]} 33. Rdxf6 {[%emt 0:00:08]} Bxf6 {[%emt 0:00:22]} 34. axb3 {[%emt 0:00:08]} Rc2 {[%emt 0:00:26]} 35. Be3 {[%emt 0:01:09]} Be7 {[%emt 0:01:16]} 36. Rd1 {[%emt 0:00:38]} Bxb4 {[%emt 0:01:03]} 37. Rd5 {[%emt 0:00:23]} Re2 {[%emt 0:05:54]} 38. Bf2 {[%emt 0:01:31]} Bc3 {[%emt 0:02:03]} 39. Bf3 {[%emt 0:01:01]} (39. Bf1 $142 Rb2 40. Bxb5) 39... Rb2 {[%emt 0:00:39]} 40. Rxb5 {[%emt 0:00:00]} Bd4 {[%emt 0:00:00]} 41. Bxd4 {[%emt 0:04:09]} exd4 {[%emt 0:02:21]} 42. Rd5 {[%emt 0:00:15]} Rxb3 {[%emt 0:01:11]} 43. Kf2 {[%emt 0:03:37]} Rb4 {[%emt 0:05:11]} 44. Rc5 {[%emt 0:03:43]} Rd8 {[%emt 0:01:15]} 45. Rc1 {[%emt 0:00:05]} Rb2+ {[%emt 0:00:15]} 46. Ke1 {[%emt 0:01:50]} g6 {[%emt 0:00:22]} 47. Rd1 {[%emt 0:00:52]} d3 {[%emt 0:00:39]} 48. Rd2 {[%emt 0:00:35]} Rxd2 {[%emt 0:02:55]} 49. Kxd2 {[%emt 0:00:07]} Kg7 {[%emt 0:00:36]} 50. Bg2 {[%emt 0:00:41]} Ra8 {[%emt 0:01:12]} 51. Bf1 {[%emt 0:03:51]} Ra2+ {[%emt 0:00:24]} (51... Ra1 $142 52. Bxd3 Rg1) 52. Kxd3 {[%emt 0:00:11]} Ra3+ {[%emt 0:00:04]} 53. Ke2 {[%emt 0:00:32]} Rxg3 {[%emt 0:00:05]} 54. Kf2 {[%emt 0:00:06]} Ra3 {[%emt 0:00:07]} 55. Bg2 {[%emt 0:00:07]} Kf6 {[%emt 0:00:23]} 56. Bf3 {[%emt 0:00:18]} Ke5 {[%emt 0:00:08]} 57. Kg3 {[%emt 0:00:06]} Re3 {[%emt 0:00:58]} 58. Kg4 {[%emt 0:00:38]} h5+ {[%emt 0:00:49]} 59. Kg3 {[%emt 0:00:08] [#]} h4+ {[%emt 0:00:26]} 60. Kg4 {[%emt 0:00:05]} f5+ {[%emt 0:00:08]} 0-1

[Event "FIDE WCCC U10 2018"]
[Site "Santiago de Compostela"]
[Date "2018.11.05"]
[Round "2"]
[White "Orujov, Farid"]
[Black "Volkov, Maksim"]
[Result "1-0"]
[ECO "C18"]
[WhiteElo "1643"]
[BlackElo "1971"]
[Annotator "NA RC"]
[PlyCount "60"]
[EventDate "2018.11.04"]
[EventType "swiss"]
[EventCountry "ESP"]
[SourceTitle "playchess.com"]
[Source "ChessBase"]
[SourceQuality "1"]
[TimeControl "40/5400+30:1800+30"]

{[%evp 8,60,1,32767,32767,8,9,2,32767,32767,32767,-9,29,22,23,-45,27,22,72,66,32,48,36,31,40,37,21,0,-25,-44,2,-9,0,-46,0,-136,-121,-126,-148,-124,-114,-124,32767,32767,2350,29985,29985,0,32767,32767,32767,-16,-14,-1736,-1262]} 1. e4 {[%emt 0:00:00]} e6 {[%emt 0:00:00]} 2. d4 {[%emt 0:00:00]} d5 {[%emt 0:00:00]} 3. Nc3 {[%emt 0:00:02]} Bb4 {[%emt 0:00:03]} 4. e5 {[%emt 0:00:06]} c5 {[%emt 0:00:06]} 5. a3 {[%emt 0:00:27]} Bxc3+ {[%emt 0:00:29]} 6. bxc3 {[%emt 0:00:08]} Qa5 {[%emt 0:01:27]} 7. Bd2 {[%emt 0:01:45]} Qa4 {[%emt 0:00:08]} 8. Qg4 {[%emt 0:00:40]} g6 {[%emt 0:00:56]} 9. Ra2 {[%emt 0:10:20]} (9. Nf3 $14) 9... Nc6 {[%emt 0:04:48]} 10. Nf3 {[%emt 0:04:17]} b6 {[%emt 0:05:54] LiveBook: 4 Games C18: French: 3 Nc3 Bb4: Main line: 7 h4 and 7 Qg4} (10... Bd7 11. Qf4 h6 12. h4 Na5 13. Bd3 Nc4 14. dxc5 Nxd2 15. Qxd2 Rc8 16. h5 g5 17. Nd4 Qa5 18. f4 Qxc5 19. fxg5 hxg5 20. Qxg5 Qxc3+ {½-½ (50) Ter Sahakyan,S (2567)-Rapport,R (2605) Athens 2012}) 11. h4 {[%emt 0:19:55]} (11. Qf4 $11) 11... h5 {[%emt 0:01:13]} (11... Ba6 $15) 12. Qf4 {[%emt 0:00:09]} Nce7 $146 {[%emt 0:03:29]} ({Predecessor:} 12... Ba6 13. Ng5 Nd8 14. Bd3 Bxd3 15. cxd3 Rc8 16. O-O c4 17. dxc4 Rxc4 18. Rb1 {1-0 (53) Schwarhofer,C (2236)-Neuer,T (2090) Latschach 2010}) 13. Ng5 {[%emt 0:04:55]} Nf5 {[%emt 0:00:12]} 14. f3 {[%emt 0:00:21]} Ba6 {[%emt 0:06:08]} 15. Bxa6 {[%emt 0:05:04]} Qxa6 {[%emt 0:00:48]} 16. g4 {[%emt 0:00:04]} Nfh6 $1 {[%emt 0:00:23]} 17. Rg1 {[%emt 0:07:50]} Qc4 {[%emt 0:03:54]} 18. Rb2 {[%emt 0:01:31]} Rc8 {[%emt 0:04:03]} 19. Kf2 $11 {[%emt 0:28:18] remains equal.} Qa4 {[%emt 0:06:17]} 20. Rb3 {[%emt 0:05:39]} Qc4 {[%emt 0:12:01]} (20... cxd4 $1 $15 21. Rc1 Rc4) 21. gxh5 {[%emt 0:04:12]} gxh5 {[%emt 0:00:07]} 22. Nxe6 {[%emt 0:00:39]} fxe6 {[%emt 0:01:29]} 23. Rg7 {[%emt 0:00:40]} Nf5 {[%emt 0:04:30]} 24. Rxa7 {[%emt 0:00:50]} Nge7 {[%emt 0:09:16]} 25. Rxb6 {[%emt 0:01:20]} Kf7 $2 {[%emt 0:00:30]} 26. Qg5 {[%emt 0:01:08]} Rhg8 {[%emt 0:09:54]} 27. Qxh5+ $2 {[%emt 0:02:35]} (27. Qf6+ {mates} Ke8 28. Bg5 Kd8 {[#]} 29. Rd6+ $1 {[%mdl 512]} Ke8 30. Rxe7+ Nxe7 31. Qxe7#) 27... Rg6 {[%emt 0:03:35]} 28. Qh7+ {[%emt 0:00:11]} Rg7 {[%emt 0:01:16]} 29. Qh5+ {[%emt 0:00:34]} Kg8 {[%emt 0:04:07] [#]} 30. Bh6 $2 {[%emt 0:00:43]} (30. Rxe7 $1 $11 {[%mdl 512]} Rxe7 (30... Nxe7 31. Rxe6) 31. Qg6+ Ng7 32. h5) 30... Ng3 $19 {[%emt 0:01:53]} 1-0

[Event "FIDE WCCC U10 2018"]
[Site "Santiago de Compostela"]
[Date "2018.11.05"]
[Round "2"]
[White "Perossa, Nicolas"]
[Black "Zhao, Erick"]
[Result "0-1"]
[ECO "B43"]
[WhiteElo "1634"]
[BlackElo "1957"]
[Annotator "NA RC"]
[PlyCount "98"]
[EventDate "2018.11.04"]
[EventType "swiss"]
[EventCountry "ESP"]
[SourceTitle "playchess.com"]
[Source "ChessBase"]
[SourceQuality "1"]
[TimeControl "40/5400+30:1800+30"]

{[%evp 9,98,8,32767,51,27,32767,41,48,71,26,88,8,11,0,2,-16,-1,-16,-1,-19,132,153,144,138,132,94,133,137,141,137,157,146,148,58,242,0,197,172,32767,154,185,133,151,51,62,31,43,56,334,24,29,29,27,39,39,19,33,0,15,0,0,-121,32767,32767,0,32767,-470,-636,-507,32767,-541,-570,32767,-532,32767,32767,-783,32767,-471,-29988,-29989,-29989,-29990,-29991,-29992,-29992,-29993,-29995,-29996,-29998,-29999]} 1. e4 {[%emt 0:00:00]} c5 {[%emt 0:00:00]} 2. Nf3 {[%emt 0:00:00]} e6 {[%emt 0:00:00]} 3. d4 {[%emt 0:00:24]} cxd4 {[%emt 0:01:32]} 4. Nxd4 {[%emt 0:02:29]} a6 {[%emt 0:00:48]} 5. Nc3 {[%emt 0:00:47]} Qc7 {[%emt 0:00:12]} 6. a3 {[%emt 0:01:33]} Nf6 {[%emt 0:00:40]} 7. f4 {[%emt 0:01:00]} d6 {[%emt 0:01:03] B43: Sicilian: Kan Variation: 5 Nc3} 8. Be3 {[%emt 0:02:34] LiveBook: 4 Games} (8. g4 h6 9. g5 hxg5 10. fxg5 Nh5 11. g6 Ng3 12. Rg1 Nxf1 13. gxf7+ Qxf7 14. Rxf1 Qg6 15. Nf3 {½-½ (29) Popov,I (2652)-Papin,V (2510) Chennai 2013}) 8... Nbd7 {[%emt 0:01:32]} 9. Bd3 {[%emt 0:12:05]} b6 {[%emt 0:01:38]} (9... Nc5 $11) 10. Qe2 {[%emt 0:08:38]} (10. g4 $16) 10... Bb7 {[%emt 0:01:08]} 11. Bf2 $146 {[%emt 0:01:31]} ({Predecessor:} 11. f5 e5 12. Nb3 Be7 13. g4 d5 14. exd5 Nxd5 15. Nxd5 Bxd5 {0-1 (44) Bogad,P (1974)-Leinfellner,H (2031) Salzburg 2004}) 11... Be7 {[%emt 0:01:05]} 12. O-O {[%emt 0:04:45]} O-O {[%emt 0:01:12]} 13. Rae1 {[%emt 0:08:40]} Nc5 {[%emt 0:03:15]} 14. Bh4 {[%emt 0:13:28]} Nfxe4 {[%emt 0:05:11]} (14... Rad8 $11) 15. Bxe7 {[%emt 0:08:55]} Nxc3 {[%emt 0:01:05] [#]} 16. Bxh7+ $1 {[%emt 0:02:28]} Kxh7 {[%emt 0:00:26]} 17. Qh5+ {[%emt 0:00:10]} Kg8 {[%emt 0:00:10]} 18. Bxf8 {[%emt 0:00:16]} Rxf8 {[%emt 0:18:11]} 19. bxc3 {[%emt 0:00:50]} Ne4 {[%emt 0:01:38]} 20. Re3 {[%emt 0:02:12]} Qc5 {[%emt 0:05:41]} 21. Qh3 {[%emt 0:08:43]} ({White should play} 21. Qxc5 $16 dxc5 22. Nf3) 21... Qd5 $2 {[%emt 0:04:46] [#]} (21... b5 $11) 22. Nf3 $2 {[%emt 0:07:55]} (22. f5 $1 $18) 22... f6 $2 {[%emt 0:04:34] [#]} (22... Rc8 $11 {and Black is okay.}) 23. Rfe1 $1 {[%emt 0:00:40]} Nc5 {[%emt 0:01:12]} 24. Nd4 {[%emt 0:02:28]} Bc8 {[%emt 0:09:59]} 25. Qh4 {[%emt 0:02:27]} ({Resist} 25. Nxe6 $6 Nxe6 26. Rxe6 Bxe6 $16) (25. Qg4 $18) 25... e5 {[%emt 0:00:42]} 26. fxe5 {[%emt 0:00:43]} (26. f5 $16) 26... dxe5 {[%emt 0:00:16]} 27. Nf3 {[%emt 0:00:44]} Bf5 {[%emt 0:00:19]} 28. Qb4 {[%emt 0:00:32]} Rb8 $2 {[%emt 0:00:39] [#]} (28... Qd6 $14) 29. c4 $2 {[%emt 0:00:43]} (29. Nxe5 $1 $18 Be4 (29... fxe5 30. Rxe5) 30. Nf3 (30. Rxe4 Nxe4 31. Rxe4 fxe5 $16)) 29... Qd6 {[%emt 0:01:06]} 30. Qc3 {[%emt 0:00:42]} Rd8 {[%emt 0:00:23]} 31. h3 {[%emt 0:00:24]} Qc6 {[%emt 0:00:57]} 32. Nh4 {[%emt 0:01:07]} Bh7 {[%emt 0:00:38]} 33. Qb2 {[%emt 0:00:57]} Rd2 {[%emt 0:04:23]} 34. R1e2 {[%emt 0:02:47]} Rd1+ {[%emt 0:01:01]} 35. Kh2 {[%emt 0:00:23]} (35. Re1 $11 {was the only way to keep the balance.} Rd6 36. Nf3) 35... Qd6 {[%emt 0:00:58]} 36. Qb4 {[%emt 0:02:35]} Rd4 $2 {[%emt 0:01:38]} ({Black should try} 36... g5 $19 37. Rg3 e4) 37. c3 {[%emt 0:00:31]} Rxh4 {[%emt 0:00:49]} 38. Rg3 {[%emt 0:00:39]} Rf4 {[%emt 0:01:28]} 39. Qb2 {[%emt 0:00:37]} Bd3 {[%emt 0:00:29]} 40. Rd2 {[%emt 0:00:00]} e4 {[%emt 0:00:00]} 41. Rf2 {[%emt 0:05:44]} e3 {[%emt 0:03:24]} 42. Rxf4 {[%emt 0:00:09]} Qxf4 {[%emt 0:00:28]} 43. Qxb6 {[%emt 0:00:13]} Ne4 {[%emt 0:00:27]} 44. Qd8+ {[%emt 0:00:34]} Kh7 {[%emt 0:00:10]} 45. Qxd3 {[%emt 0:03:39]} Qxg3+ {[%emt 0:00:02]} 46. Kg1 {[%emt 0:01:10]} Qf2+ {[%emt 0:00:24]} 47. Kh2 {[%emt 0:00:45]} f5 {[%emt 0:00:06]} 48. Qd5 {[%emt 0:01:48]} e2 {[%emt 0:00:17]} 49. Qf7 {[%emt 0:01:50]} Qg3+ {[%emt 0:00:07]} 0-1